fUSD/lending_fUSD_20250505
["ID","MTS","AMOUNT","RATE_DAILY","PERIOD"]
[359917512,1746419447120,-477.70745841,0.00019886,2]
[359917513,1746419447130,-211.03785791,0.00019886,2]
[359917514,1746419447140,-470.0,0.00019886,2]
[359917515,1746419447152,-328.93644007,0.00019889,2]
[359917516,1746419447163,-159.95835656,0.00019894,2]
[359917517,1746419447173,-171.39161196,0.00019897,2]
[359917518,1746419447182,-129.93644128,0.00019897,2]
[359917519,1746419447194,-26.49044143,0.00019897,2]
[359917520,1746419447204,-171.39161196,0.00019899,2]
[359917521,1746419447214,-156.42688271,0.00019899,2]
[359917522,1746419447224,-151.0,0.00019899,2]
[359917523,1746419447235,-151.0,0.00019899,2]
[359917524,1746419447245,-200.0,0.00019899,2]
[359917525,1746419447254,-1487.344,0.00019899,2]
[359917526,1746419447264,-177.436,0.00019899,2]
[359917527,1746419447273,-201.65168614,0.00019899,2]
[359917528,1746419447284,-150.0,0.00019899,2]
[359917529,1746419447294,-150.0,0.00019899,2]
[359917530,1746419447303,-150.0,0.00019899,2]
[359917531,1746419447313,-7666.73129023,0.000199,2]
[359917532,1746419447323,-171.39161196,0.000199,2]
[359917533,1746419447333,-156.42688271,0.000199,2]
[359917534,1746419447342,-328.93644007,0.000199,2]
[359917535,1746419447353,-10500.0,0.000199,3]
[359917536,1746419447363,-12959.77314129,0.000199,2]
[359917537,1746419447383,-46972.27296698,0.000199,2]
[359917538,1746419503621,313.82,0.00018991,2]
[359917541,1746419648289,154.28,0.00019178,2]
[359917542,1746419722810,150.050513,0.0003,30]
[359917543,1746419812758,202.09,0.00018983,2]
[359917544,1746419879781,397.63,0.00017035,2]
[359917545,1746419879987,397.63,0.00019298,2]
[359917546,1746419928239,500.0,0.00027945,30]
[359917547,1746419928489,500.0,0.00029315,35]
[359917548,1746419951096,500.0,0.00027945,30]
[359917549,1746419951360,500.0,0.00029315,30]
[359917564,1746420354183,2611.0,0.0003,30]
[359917565,1746420356823,1000.0,0.00018955,2]
[359917566,1746420357166,250.0,0.00017,2]
[359917567,1746420358232,250.0,0.00019,2]
[359917568,1746420358255,50.0,0.00019,2]
[359917590,1746420537222,1497.57,0.0003,30]
[359917591,1746420537879,500.0,0.00027945,30]
[359917592,1746420538113,500.0,0.00029315,35]
[359917596,1746420564654,500.0,0.00027945,30]
[359917597,1746420564897,500.0,0.00029315,30]
[359917599,1746420595152,-568.90867616,0.0002,7]
[359917606,1746420632648,-207.4,0.00019774,2]
[359917607,1746420632658,-250.0,0.00019777,2]
[359917608,1746420632668,-250.87978032,0.00019785,2]
[359917609,1746420632677,-167.55723489,0.00019785,2]
[359917610,1746420632687,-591.96298529,0.00019785,2]
[359918098,1746420638313,-608.03701471,0.00019785,2]
[359918099,1746420638323,-300.0,0.00019785,2]
[359918100,1746420638333,-1447.89622456,0.00019786,2]
[359918101,1746420638344,-263.87137854,0.00019786,2]
[359918169,1746420640418,-1562.70669983,0.00019786,2]
[359918170,1746420640474,-607.36,0.00019786,2]
[359918171,1746420640530,-581.34790231,0.00019786,2]
[359918172,1746420640585,-6000.0,0.00019786,2]
[359918217,1746420646144,-16049.90189282,0.00019786,2]
[359918218,1746420646196,-2264.49513587,0.00019786,2]
[359918350,1746420661067,159.86,0.00019178,2]
[359918351,1746420776329,400.7396481,0.0003,30]
[359918352,1746420809415,2329.87772603,0.00019996,5]
[359918353,1746420809444,2329.87772603,0.00019999,5]
[359918354,1746420809472,199.86593861,0.00019996,5]
[359918355,1746420809502,2329.87772603,0.00019999,5]
[359918356,1746420809532,200.13406139,0.00019999,5]
[359918357,1746420809562,2329.87772603,0.00019999,5]
[359918358,1746420809590,2329.87772603,0.00019999,5]
[359918359,1746420809624,2329.87772603,0.00019999,5]
[359918360,1746420809697,2329.87772603,0.00019999,5]
[359918361,1746420809726,2329.87772603,0.00019998,5]
[359918362,1746420809762,2329.87772603,0.00019999,5]
[359918363,1746420809791,2329.87772603,0.00019999,5]
[359918364,1746420809828,2329.87772604,0.00019999,5]
[359918365,1746420809885,2329.87772603,0.00019999,5]
[359918366,1746420820068,3200.0,0.000191,6]
[359918367,1746420822249,6500.0,0.000192,7]
[359918368,1746420824232,300.0,0.00019918,7]
[359918369,1746420824338,9700.0,0.000193,7]
[359918370,1746420826428,13000.0,0.000194,7]
[359918371,1746420828539,16300.0,0.000195,7]
[359918372,1746420830635,3200.0,0.000196,7]
[359918373,1746420832743,3200.0,0.000197,7]
[359918374,1746420834834,3200.0,0.000198,7]
[359918375,1746420836925,3200.0,0.000199,7]
[359918376,1746420845556,156.91,0.00018939,2]
[359918377,1746421103946,500.0,0.00027945,30]
[359918378,1746421104182,500.0,0.00029315,35]
[359918379,1746421104581,391.8,0.00016944,2]
[359918380,1746421104793,391.8,0.00019208,2]
[359918381,1746421124633,500.0,0.00027945,30]
[359918382,1746421124878,500.0,0.00029315,30]
[359918383,1746421254295,1402.0,0.000194,2]
[359918384,1746421256691,-248.26962923,0.000196,2]
[359918385,1746421266057,-300.0,0.000196,2]
[359918386,1746421443075,1000.0,0.000189,2]
[359918387,1746421467802,500.0,0.0003,30]
[359918424,1746421732362,500.0,0.00027945,30]
[359918425,1746421732584,500.0,0.00029315,35]
[359918430,1746421809239,165.0,0.000195,2]
[359918435,1746421832328,-853.73037077,0.000196,2]
[359918436,1746421832338,-151.0,0.000196,2]
[359918437,1746421832348,-292.03215161,0.000196,2]
[359918438,1746421832358,-29.64126096,0.00019624,2]
[359918439,1746421832488,-220.35873904,0.00019624,2]
[359918440,1746421832498,-630.53324096,0.00019694,2]
[359918441,1746421832543,-176.70005,0.00019694,2]
[359918442,1746421832553,-153.06381651,0.00019714,2]
[359918670,1746421838294,-151.0,0.00019714,2]
[359918671,1746421838304,-54.33618349,0.00019714,2]
[359918672,1746421838314,-300.0,0.00019725,2]
[359918673,1746421838324,-1200.0,0.00019725,2]
[359918674,1746421838334,-300.0,0.00019725,2]
[359918675,1746421838344,-164.725889,0.00019726,2]
[359918676,1746421838354,-164.725889,0.00019726,2]
[359918677,1746421838364,-164.725889,0.00019726,2]
[359918678,1746421838374,-156.858241,0.00019726,2]
[359918679,1746421838384,-156.858241,0.00019726,2]
[359918680,1746421838394,-156.858241,0.00019726,2]
[359918681,1746421838404,-176.029022,0.00019726,2]
[359918682,1746421838414,-176.029022,0.00019726,2]
[359918683,1746421838424,-176.029022,0.00019726,2]
[359918684,1746421838433,-176.029022,0.00019726,2]
[359918685,1746421838442,-176.029022,0.00019726,2]
[359918686,1746421838452,-176.029022,0.00019726,2]
[359918687,1746421838461,-176.029022,0.00019726,2]
[359918688,1746421838471,-176.029022,0.00019726,2]
[359918689,1746421838481,-161.20633,0.00019726,2]
[359918690,1746421838490,-161.20633,0.00019726,2]
[359918691,1746421838499,-161.20633,0.00019726,2]
[359918692,1746421838508,-158.197242,0.00019726,2]
[359918693,1746421838519,-158.197242,0.00019726,2]
[359918694,1746421838531,-158.197242,0.00019726,2]
[359918695,1746421838541,-68.13774475,0.00019726,2]
[359918696,1746421838553,-90.05949725,0.00019726,2]
[359918697,1746421838562,-158.197242,0.00019726,2]
[359918698,1746421838571,-158.197242,0.00019726,2]
[359918699,1746421838581,-158.197242,0.00019726,2]
[359918700,1746421838592,-164.725889,0.00019753,2]
[359918701,1746421838601,-176.029022,0.00019753,2]
[359918702,1746421838611,-176.029022,0.00019753,2]
[359918703,1746421838619,-158.197242,0.00019753,2]
[359918704,1746421838629,-158.197242,0.00019753,2]
[359918705,1746421838638,-151.0,0.00019774,2]
[359918706,1746421838648,-151.0,0.00019774,2]
[359918707,1746421838658,-0.49414765,0.00019774,2]
[359918709,1746421838669,-668.15770992,0.00019774,2]
[359918710,1746421838678,-164.725889,0.0001978,2]
[359918712,1746421838688,-156.858241,0.0001978,2]
[359918714,1746421838697,-176.029022,0.0001978,2]
[359918716,1746421838706,-176.029022,0.0001978,2]
[359918718,1746421838715,-161.20633,0.0001978,2]
[359918720,1746421838724,-158.197242,0.0001978,2]
[359918722,1746421838733,-374.56197208,0.00019786,2]
[359918725,1746421838745,-2172.528378,0.00019786,2]
[359918727,1746421838756,-2052.2052,0.00019786,2]
[359918729,1746421838767,-2063.57616,0.00019786,2]
[359918872,1746421840648,-151.0,0.00019774,2]
[359918874,1746421840657,-344.81453581,0.00019786,2]
[359918876,1746421840669,-1026.07747068,0.00019786,2]
[359918892,1746421840813,-1000.0,0.00019786,2]
[359919061,1746421843399,-151.0,0.00019786,2]
[359919062,1746421843408,-2464.06841818,0.00019786,2]
[359919064,1746421843727,-22036.67031525,0.00019786,2]
[359919066,1746421843736,-1402.0,0.000198,2]
[359919068,1746421843746,-176.029022,0.00019808,2]
[359919069,1746421843755,-158.197242,0.00019808,2]
[359919071,1746421843764,-633.77559002,0.00019847,2]
[359919073,1746421843774,-633.77559,0.00019858,2]
[359919075,1746421843783,-633.77559,0.00019868,2]
[359919077,1746421843792,-500.0,0.00019873,2]
[359919079,1746421843802,-208.19741565,0.00019873,2]
[359919081,1746421843811,-633.77559,0.00019879,2]
[359919083,1746421843820,-633.77559,0.00019889,2]
[359919085,1746421843830,-1917.51794199,0.00019895,2]
[359919087,1746421843839,-390.30684741,0.00019895,2]
[359919089,1746421843849,-1917.51794199,0.00019895,2]
[359919091,1746421843858,-390.30684737,0.00019896,2]
[359919093,1746421843867,-1917.51794199,0.00019896,2]
[359919095,1746421843877,-390.30684737,0.00019896,2]
[359919097,1746421843886,-21572.8892,0.00019896,2]
[359919099,1746421843895,-1917.51794199,0.00019897,2]
[359919101,1746421843905,-390.30684737,0.00019897,2]
[359919103,1746421843914,-390.30684737,0.00019897,2]
[359919105,1746421843923,-1917.51794199,0.00019897,2]
[359919107,1746421843933,-390.30684737,0.00019898,2]
[359919109,1746421843942,-1917.51794199,0.00019898,2]
[359919111,1746421843952,-390.30684737,0.00019898,2]
[359919113,1746421843961,-141427.65361275,0.00019898,2]
[359919115,1746421843970,-1917.51794199,0.00019899,2]
[359919117,1746421843981,-390.30684737,0.00019899,2]
[359919119,1746421843990,-528.24260022,0.00019899,2]
[359919121,1746421843999,-450.0,0.00019899,2]
[359919123,1746421844010,-450.0,0.00019899,2]
[359919125,1746421844019,-1625.04,0.00019899,2]
[359919127,1746421844028,-450.0,0.00019899,2]
[359919129,1746421844037,-450.0,0.00019899,2]
[359919131,1746421844047,-312.08845555,0.00019899,2]
[359919133,1746421844056,-450.0,0.00019899,2]
[359919135,1746421844066,-450.0,0.00019899,2]
[359919137,1746421844075,-450.0,0.00019899,2]
[359919139,1746421844084,-450.0,0.00019899,2]
[359919141,1746421844093,-450.0,0.00019899,2]
[359919143,1746421844102,-450.0,0.00019899,2]
[359919145,1746421844112,-450.0,0.00019899,2]
[359919147,1746421844122,-467.12541024,0.00019899,2]
[359919149,1746421844131,-417.37558065,0.00019899,2]
[359919151,1746421844141,-565.42358166,0.00019899,2]
[359919153,1746421844150,-450.0,0.00019899,2]
[359919155,1746421844159,-450.0,0.00019899,2]
[359919157,1746421844172,-300.13864713,0.00019899,2]
[359919159,1746421844180,-450.0,0.00019899,2]
[359919161,1746421844189,-450.0,0.00019899,2]
[359919163,1746421844199,-450.0,0.00019899,2]
[359919165,1746421844208,-203.42300429,0.00019899,2]
[359919167,1746421844217,-150.0,0.00019899,2]
[359919169,1746421844226,-450.0,0.00019899,2]
[359919170,1746421844236,-450.0,0.00019899,2]
[359919172,1746421844245,-450.0,0.00019899,2]
[359919174,1746421844254,-450.0,0.00019899,2]
[359919176,1746421844265,-450.0,0.00019899,2]
[359919178,1746421844274,-450.0,0.00019899,2]
[359919180,1746421844283,-802.04,0.00019899,2]
[359919182,1746421844292,-577.73566048,0.00019899,2]
[359919184,1746421844302,-301.52850891,0.00019899,2]
[359919186,1746421844311,-450.0,0.00019899,2]
[359919188,1746421844321,-450.0,0.00019899,2]
[359919190,1746421844330,-792.58,0.00019899,2]
[359919192,1746421844339,-504.45588881,0.00019899,2]
[359919194,1746421844348,-169.73308371,0.00019899,2]
[359919195,1746421844357,-450.0,0.00019899,2]
[359919197,1746421844367,-872.88,0.00019899,2]
[359919199,1746421844377,-3606.45,0.00019899,2]
[359919200,1746421844386,-462.77035618,0.00019899,2]
[359919201,1746421844396,-571.63685191,0.00019899,2]
[359919202,1746421844405,-1614.09,0.00019899,2]
[359919203,1746421844415,-584.72,0.00019899,2]
[359919204,1746421844424,-450.0,0.00019899,2]
[359919205,1746421844433,-450.0,0.00019899,2]
[359919206,1746421844443,-150.0,0.00019899,2]
[359919207,1746421844452,-450.0,0.00019899,2]
[359919208,1746421844461,-450.0,0.00019899,2]
[359919209,1746421844470,-450.0,0.00019899,2]
[359919210,1746421844479,-450.0,0.00019899,2]
[359919211,1746421844489,-450.0,0.00019899,2]
[359919212,1746421844498,-1917.51794199,0.00019899,2]
[359919213,1746421844507,-390.30684737,0.00019899,2]
[359919214,1746421844517,-1000.0,0.000199,2]
[359919215,1746421844525,-1000.0,0.000199,2]
[359919216,1746421844534,-1000.0,0.000199,2]
[359919217,1746421844544,-632.0,0.000199,2]
[359919218,1746421844553,-1189.876,0.000199,2]
[359919219,1746421844562,-1917.51794199,0.000199,2]
[359919220,1746421844571,-633.77559,0.000199,2]
[359919221,1746421844581,-14143.65231406,0.000199,2]
[359919222,1746421844590,-157.14749848,0.000199,2]
[359919223,1746421844599,-390.30684737,0.000199,2]
[359919224,1746421844608,-202.624,0.00019908,2]
[359919225,1746421844617,-887.123,0.00019908,2]
[359919226,1746421844627,-1155.063,0.00019908,2]
[359919227,1746421844636,-150.0,0.00019926,2]
[359919228,1746421844645,-248.73087827,0.00019926,2]
[359919229,1746421844654,-1300.0,0.00019947,2]
[359919230,1746421844663,-926.0,0.00019947,2]
[359919231,1746421844672,-797.0,0.00019947,2]
[359919232,1746421844682,-564.0,0.00019947,2]
[359919233,1746421844691,-500.0,0.00019947,2]
[359919234,1746421844700,-500.0,0.00019947,2]
[359919235,1746421844709,-500.0,0.00019947,2]
[359919236,1746421844719,-500.0,0.00019947,2]
[359919237,1746421844729,-516.0,0.00019947,2]
[359919238,1746421844738,-500.0,0.00019947,2]
[359919239,1746421844747,-500.0,0.00019947,2]
[359919240,1746421844757,-500.0,0.00019947,2]
[359919241,1746421844766,-500.0,0.00019947,2]
[359919242,1746421844775,-500.0,0.00019947,2]
[359919243,1746421844784,-500.0,0.00019947,2]
[359919244,1746421844794,-500.0,0.00019947,2]
[359919245,1746421844803,-500.0,0.00019947,2]
[359919246,1746421844812,-564.0,0.00019947,2]
[359919247,1746421844821,-567.0,0.00019947,2]
[359919248,1746421844831,-500.0,0.00019947,2]
[359919249,1746421844840,-500.0,0.00019947,2]
[359919250,1746421844849,-500.0,0.00019947,2]
[359919251,1746421844859,-150.0,0.00019954,2]
[359919252,1746421844869,-500.0,0.00019973,2]
[359919253,1746421844878,-500.0,0.00019973,2]
[359919254,1746421844887,-500.0,0.00019973,2]
[359919255,1746421844897,-200.0,0.00019981,2]
[359919256,1746421844907,-1491.6666667,0.00019986,2]
[359919257,1746421844917,-3569.36,0.00019989,2]
[359919258,1746421844926,-1029.0,0.0001999,2]
[359919259,1746421844936,-450.0,0.00019993,2]
[359919260,1746421844946,-164.73514126,0.00019993,2]
[359919261,1746421844955,-500.0,0.00019993,2]
[359919262,1746421844965,-239.44,0.00019993,2]
[359919263,1746421844975,-903.62,0.00019993,2]
[359919264,1746421844985,-450.0,0.00019993,2]
[359919265,1746421844994,-468.06,0.00019993,2]
[359919266,1746421845003,-450.0,0.00019993,2]
[359919267,1746421845014,-450.0,0.00019993,2]
[359919268,1746421845023,-564.94358811,0.00019993,2]
[359919269,1746421845033,-1242.47,0.00019993,2]
[359919270,1746421845043,-15407.04,0.00019993,2]
[359919271,1746421845052,-450.0,0.00019993,2]
[359919272,1746421845062,-450.0,0.00019993,2]
[359919273,1746421845071,-450.0,0.00019993,2]
[359919274,1746421845081,-450.0,0.00019993,2]
[359919275,1746421845091,-452.67,0.00019993,2]
[359919276,1746421845103,-450.0,0.00019993,2]
[359919277,1746421845113,-450.0,0.00019993,2]
[359919278,1746421845123,-6601.65,0.00019993,2]
[359919279,1746421845133,-491.49,0.00019993,2]
[359919280,1746421845143,-450.0,0.00019993,2]
[359919281,1746421845153,-6025.34143558,0.00019994,2]
[359919282,1746421845162,-227.16,0.00019995,2]
[359919283,1746421845176,-460.72547951,0.00019995,2]
[359919284,1746421845186,-872.88,0.00019995,2]
[359919285,1746421845196,-365.26542591,0.00019996,2]
[359919286,1746421845205,-1625.04,0.00019996,2]
[359919287,1746421845214,-1625.04,0.00019996,2]
[359919288,1746421845224,-1625.04,0.00019996,2]
[359919289,1746421845234,-333.03,0.00019996,2]
[359919290,1746421845243,-450.0,0.00019996,2]
[359919291,1746421845254,-450.0,0.00019996,2]
[359919292,1746421845263,-450.0,0.00019996,2]
[359919293,1746421845273,-450.0,0.00019996,2]
[359919294,1746421845282,-450.0,0.00019996,2]
[359919295,1746421845292,-450.0,0.00019996,2]
[359919296,1746421845302,-450.0,0.00019996,2]
[359919297,1746421845311,-450.0,0.00019996,2]
[359919298,1746421845321,-485.88246104,0.00019996,2]
[359919299,1746421845331,-185.09,0.00019996,2]
[359919300,1746421845341,-450.0,0.00019996,2]
[359919301,1746421845351,-450.0,0.00019996,2]
[359919302,1746421845360,-260.33721504,0.00019996,2]
[359919303,1746421845370,-450.0,0.00019996,2]
[359919304,1746421845379,-450.0,0.00019996,2]
[359919305,1746421845388,-450.0,0.00019996,2]
[359919306,1746421845397,-464.23,0.00019996,2]
[359919307,1746421845407,-450.0,0.00019996,2]
[359919308,1746421845416,-323.79,0.00019996,2]
[359919309,1746421845426,-450.0,0.00019996,2]
[359919310,1746421845436,-210.04411713,0.00019996,2]
[359919311,1746421845446,-450.0,0.00019996,2]
[359919312,1746421845454,-450.0,0.00019996,2]
[359919313,1746421845464,-450.0,0.00019996,2]
[359919314,1746421845473,-450.0,0.00019996,2]
[359919315,1746421845483,-450.0,0.00019996,2]
[359919316,1746421845492,-450.0,0.00019996,2]
[359919317,1746421845502,-450.0,0.00019996,2]
[359919318,1746421845511,-450.0,0.00019996,2]
[359919319,1746421845521,-253.68502601,0.00019996,2]
[359919320,1746421845531,-250.70498054,0.00019996,2]
[359919321,1746421845541,-203.24774783,0.00019996,2]
[359919322,1746421845551,-802.04,0.00019996,2]
[359919323,1746421845561,-802.04,0.00019996,2]
[359919324,1746421845571,-802.04,0.00019996,2]
[359919325,1746421845581,-500.0,0.00019996,2]
[359919326,1746421845591,-500.0,0.00019996,2]
[359919327,1746421845600,-500.0,0.00019996,2]
[359919328,1746421845610,-450.0,0.00019996,2]
[359919329,1746421845620,-450.0,0.00019996,2]
[359919330,1746421845630,-450.0,0.00019996,2]
[359919331,1746421845639,-450.0,0.00019996,2]
[359919332,1746421845648,-204.93,0.00019996,2]
[359919333,1746421845658,-903.62,0.00019996,2]
[359919334,1746421845669,-903.62,0.00019996,2]
[359919335,1746421845680,-903.62,0.00019996,2]
[359919336,1746421845690,-151.0,0.00019996,2]
[359919337,1746421845700,-792.58,0.00019996,2]
[359919338,1746421845710,-792.58,0.00019996,2]
[359919339,1746421845719,-792.58,0.00019996,2]
[359919340,1746421845730,-210.41,0.00019996,2]
[359919341,1746421845739,-468.06,0.00019996,2]
[359919342,1746421845748,-468.06,0.00019996,2]
[359919343,1746421845758,-468.06,0.00019996,2]
[359919344,1746421845768,-450.0,0.00019996,2]
[359919345,1746421845777,-450.0,0.00019996,2]
[359919346,1746421845787,-385.65459448,0.00019996,2]
[359919347,1746421845796,-439.48781729,0.00019996,2]
[359919348,1746421845806,-1242.47,0.00019996,2]
[359919349,1746421845815,-1242.47,0.00019996,2]
[359919350,1746421845825,-1242.47,0.00019996,2]
[359919351,1746421845835,-15407.04,0.00019996,2]
[359919352,1746421845845,-15407.04,0.00019996,2]
[359919353,1746421845855,-15407.04,0.00019996,2]
[359919354,1746421845865,-872.88,0.00019996,2]
[359919355,1746421845874,-872.88,0.00019996,2]
[359919356,1746421845884,-500.0,0.00019996,2]
[359919357,1746421845894,-489.16243278,0.00019996,2]
[359919358,1746421845904,-500.0,0.00019996,2]
[359919359,1746421845914,-500.0,0.00019996,2]
[359919360,1746421845924,-500.0,0.00019996,2]
[359919361,1746421845933,-500.0,0.00019996,2]
[359919362,1746421845943,-500.0,0.00019996,2]
[359919363,1746421845952,-500.0,0.00019996,2]
[359919364,1746421845961,-3606.45,0.00019996,2]
[359919365,1746421845971,-3606.45,0.00019996,2]
[359919366,1746421845980,-3606.45,0.00019996,2]
[359919367,1746421845990,-450.0,0.00019996,2]
[359919368,1746421845999,-600.0,0.00019996,2]
[359919369,1746421846008,-450.0,0.00019996,2]
[359919370,1746421846018,-450.0,0.00019996,2]
[359919371,1746421846028,-450.0,0.00019996,2]
[359919372,1746421846037,-450.0,0.00019996,2]
[359919373,1746421846047,-450.0,0.00019996,2]
[359919374,1746421846056,-1614.09,0.00019996,2]
[359919375,1746421846065,-1614.09,0.00019996,2]
[359919376,1746421846074,-1614.09,0.00019996,2]
[359919377,1746421846083,-450.0,0.00019996,2]
[359919378,1746421846092,-450.0,0.00019996,2]
[359919379,1746421846102,-450.0,0.00019996,2]
[359919380,1746421846111,-450.0,0.00019996,2]
[359919381,1746421846120,-450.0,0.00019996,2]
[359919382,1746421846129,-450.0,0.00019996,2]
[359919383,1746421846138,-452.67,0.00019996,2]
[359919384,1746421846147,-452.67,0.00019996,2]
[359919385,1746421846156,-452.67,0.00019996,2]
[359919386,1746421846166,-200.0,0.00019996,2]
[359919387,1746421846310,-518.09607592,0.00019996,2]
[359919388,1746421846320,-450.0,0.00019996,2]
[359919389,1746421846330,-450.0,0.00019996,2]
[359919390,1746421846339,-450.0,0.00019996,2]
[359919391,1746421846349,-6601.65,0.00019996,2]
[359919392,1746421846358,-6601.65,0.00019996,2]
[359919393,1746421846368,-3346.24510353,0.00019996,2]
[359919394,1746421846613,-151.0,0.00019899,2]
[359919395,1746421846622,-3255.40489647,0.00019996,2]
[359919396,1746421846632,-474.56678846,0.00019996,2]
[359919397,1746421846642,-151.0,0.00019996,2]
[359919398,1746421846651,-151.0,0.00019996,2]
[359919399,1746421846660,-450.0,0.00019996,2]
[359919400,1746421846669,-450.0,0.00019996,2]
[359919401,1746421846679,-28.40518318,0.00019996,2]
[359919410,1746421891617,156.67,0.00019178,2]
[359919411,1746421922225,156.91,0.00019237,2]
[359919412,1746421930597,2200.0,0.000191,6]
[359919413,1746421932384,4400.0,0.000192,7]
[359919414,1746421934472,2672.55861147,0.000193,7]
[359919415,1746421934497,4027.44138853,0.000193,7]
[359919416,1746421936566,8900.0,0.000194,7]
[359919417,1746421938658,11100.0,0.000195,7]
[359919418,1746421940772,2200.0,0.000196,7]
[359919419,1746421942852,2200.0,0.000197,7]
[359919420,1746421944955,2200.0,0.000198,7]
[359919421,1746421947051,2200.0,0.000199,7]
[359919422,1746422049072,221.69,0.00019501,2]
[359919423,1746422091529,6038.44581933,0.0001888,2]
[359919424,1746422161335,387.16,0.00017102,2]
[359919425,1746422161565,387.16,0.00019366,2]
[359919426,1746422169001,300.0,0.00019918,7]
[359919427,1746422181180,250.0,0.00017,2]
[359919428,1746422182254,300.0,0.00019,2]
[359919429,1746422189876,4541.88100018,0.000195,2]
[359919430,1746422269439,224.20174954,0.00019402,2]
[359919431,1746422346407,500.0,0.00027945,30]
[359919432,1746422346650,500.0,0.00029315,35]
[359919433,1746422632003,1032.61757214,0.0003,30]
[359919434,1746422700827,1000.0,0.00019006,2]
[359919438,1746422741009,19328.96842268,0.000198,5]
[359919449,1746422762916,162.34118502,0.0003,120]
[359919450,1746422785898,15232.89070665,0.0002,5]
[359919455,1746422838557,1411.84328295,0.0002,5]
[359919467,1746422920246,1013.0,0.0002,6]
[359919468,1746422921542,7042.49151306,0.00015,5]
[359919469,1746422925943,4001.29082779,0.00019,2]
[359919483,1746422990976,8700.0,0.000191,6]
[359919484,1746422993076,17500.0,0.000192,7]
[359919485,1746422995197,26200.0,0.000193,7]
[359919486,1746422997352,35000.0,0.000194,7]
[359919487,1746422999600,43800.0,0.000195,7]
[359919488,1746423017670,156.67,0.00019178,2]
[359919564,1746423037587,-299.25,0.00019599,2]
[359919565,1746423037599,-0.75,0.00019599,2]
[359919566,1746423037608,-616.1109384,0.000196,7]
[359919567,1746423039967,-3482.06712108,0.000196,7]
[359919595,1746423043090,-4601.82194052,0.000196,7]
[359919596,1746423043099,-26828.27265005,0.000196,2]
[359919597,1746423043108,-8700.0,0.000197,7]
[359919598,1746423043118,-8700.0,0.000198,7]
[359919599,1746423043127,-4608.72201662,0.0001988,2]
[359919600,1746423043136,-250.0,0.00019882,2]
[359919601,1746423043146,-207.4,0.00019888,2]
[359919602,1746423043155,-1200.0,0.00019895,2]
[359919603,1746423043164,-1070.69803804,0.00019896,2]
[359919604,1746423043174,-1070.69803798,0.00019896,2]
[359919605,1746423043184,-1070.69803798,0.00019897,2]
[359919606,1746423043194,-169.27833252,0.00019897,2]
[359919607,1746423043203,-1070.69803798,0.00019897,2]
[359919608,1746423043212,-169.27833251,0.00019898,2]
[359919609,1746423043222,-951.9,0.00019899,2]
[359919610,1746423043231,-169.27833251,0.00019899,2]
[359919611,1746423043240,-169.27833251,0.000199,2]
[359919612,1746423043250,-2280.17024533,0.000199,2]
[359919613,1746423043259,-7887.77102923,0.000199,7]
[359919614,1746423043293,-812.22897077,0.000199,7]